Cogmind - Beta 15 @@@ ROGUE MODE // 2025.09.26 @ 20:15:22 Player: Tereza Result: Destroyed by G-50 Soldier with Heavy Laser Performance ------------- Evolutions (5) 2500 Regions Visited (24) 4800 Robots Destroyed (329) 1645 Value Destroyed (11794) 11794 Prototype IDs (50) 1000 Alien Tech Used (1) 200 Bonus (5178) 5178 TOTAL SCORE: 27117 Bonus ------- High Alert Combat Kills 556 Follower Combat Kills 1600 Entered Garrisons 200 Network Hubs Disabled 400 Aligned with FarCom 300 Met Data Miner 300 Met Warlord at Base 500 MAIN.C Attacked Warlord 500 Warlord Defense Kills 450 Built Enhanced Grunts 300 Met R17 at Cetus 500 Friendly Fire -428 Cogmind --------- Core Integrity 0/1000 Matter 300/300 Energy 99/100 System Corruption 8% Temperature Cool (9) Movement Core (50) Location -5/Warlord Parts ------- > --- POWER (2) -------- (None) > --- PROPULSION (5) --- (None) > --- UTILITY (7) ------ Enhanced Optical Array > --- WEAPON (3) ------- (None) > --- INVENTORY (5) ---- EMDS Peak State ------------ > --- POWER ------------ Vortex Chain Reactor > --- PROPULSION ------- Centrium Heavy Treads Centrium Heavy Treads > --- UTILITY ---------- Advanced Heat Sink High-capacity Storage Unit Enhanced Optical Array Advanced Sensor Array Experimental Armor Integrity Analyzer Centrium Medium Armor Plating Experimental Focal Shield > --- WEAPON ----------- Flak Gun Advanced KE Penetrator Rocket Array > --- INVENTORY -------- Centrium Heavy Treads Advanced Heat Sink Large Matter Pod High-capacity Matter Pod Matter Compressor Improved Terrain Scanner Advanced Terrain Scan Processor Seismic Detector Hardlight Generator Improved Remote Force Field Point Defense System Long-range Tractor Beam EMDS Hypervelocity Coil Gun Heavy Flak Cannon Improved Datajack [Rating: 126] Favorites ----------- Power Improved Deuterium Engine Engine Improved Deuterium Engine Power Core Micro Nuclear Core Reactor Quantum Reactor Propulsion Light Treads Treads Light Treads Leg Carbon-fiber Leg Wheel Armored Huge Wheel Utility High-capacity Storage Unit Device Advanced Heat Sink Storage High-capacity Storage Unit Processor Salvage Targeting Computer Hackware Makeshift Hacking Suite Protection Centrium Medium Armor Plating Weapon Heavy Ion Cannon Energy Gun Thermic Laser Energy Cannon Heavy Ion Cannon Ballistic Gun Advanced KE Penetrator Ballistic Cannon Tri-rail Accelerator Launcher Rocket Array Special Melee Weapon Datajack Build | -11 -10 -10 -9 -9 -9 -8 -8 -8 -8 -8 -7 -7 -7 -7 -6 -6 -6 -6 -6 -6 -5 -5 -5 -5 ------- Run | Yrd Mat Min Mat Min Exi Min Mat Gar Mat Sto Fac Low Low Dat Pro Fac Ext Cet Arc Hub Fac Upp Upp War Slots Evolved 10 | . . . 2 . . . 2 . . . 2 . . . . 2 . . . . 2 . . . Power 1 | . . . . . . . . . . . 1 . . . . . . . . . . . . . Propulsion 3 | . . . 1 . . . 1 . . . . . . . . . . . . . 1 . . . Utility 5 | . . . 1 . . . 1 . . . 1 . . . . 1 . . . . 1 . . . Weapon 1 | . . . . . . . . . . . . . . . . 1 . . . . . . . . Parts Attached 176 | 8 6 1 22 6 . 1 20 4 11 11 11 4 . . 13 5 13 7 1 3 18 3 2 6 Power 29 | 1 1 . 2 1 . . 3 . 1 4 4 1 . . 3 1 2 1 . 1 1 1 . 1 Engine 20 | 1 . . 2 1 . . 2 . 1 4 3 . . . 3 . 1 . . 1 . 1 . . Core 6 | . 1 . . . . . 1 . . . 1 1 . . . 1 1 . . . . . . . Reactor 3 | . . . . . . . . . . . . . . . . . . 1 . . 1 . . 1 Propulsion 53 | 2 2 . 11 3 . . 7 1 7 3 2 2 . . 2 1 3 2 . . 4 . . 1 Treads 51 | 2 2 . 11 3 . . 7 1 7 3 2 2 . . 2 . 2 2 . . 4 . . 1 Leg 1 | . . . . . . . . . . . . . . . . . 1 . . . . . . . Wheel 1 | . . . . . . . . . . . . . . . . 1 . . . . . . . . Hover . | . . . . . . . . . . . . . . . . . . . . . . . . . Flight . | . . . . . . . . . . . . . . . . . . . . . . . . . Utility 54 | 2 1 1 4 1 . . 6 2 2 2 2 1 . . 4 2 4 3 1 1 8 1 2 4 Device 28 | 1 . . 3 . . . 2 1 1 2 1 1 . . 3 1 2 2 1 1 2 1 1 2 Storage 9 | 1 1 1 . 1 . . 1 . . . 1 . . . . . . . . . 1 . 1 1 Processor 8 | . . . . . . . 1 1 1 . . . . . 1 1 . . . . 2 . . 1 Hackware 2 | . . . . . . . . . . . . . . . . . . . . . 2 . . . Protection 7 | . . . 1 . . . 2 . . . . . . . . . 2 1 . . 1 . . . Artifact . | . . . . . . . . . . . . . . . . . . . . . . . . . Weapon 40 | 3 2 . 5 1 . 1 4 1 1 2 3 . . . 4 1 4 1 . 1 5 1 . . Energy Gun 1 | . . . . . . . . . . . . . . . . 1 . . . . . . . . Energy Cannon 16 | . . . 3 . . 1 3 1 . 1 2 . . . 3 . 1 . . 1 . . . . Ballistic Gun 14 | 3 . . 1 . . . 1 . 1 . . . . . . . 3 1 . . 3 1 . . Ballistic Cannon 1 | . . . . . . . . . . . . . . . . . . . . . 1 . . . Launcher 6 | . 1 . 1 1 . . . . . 1 . . . . 1 . . . . . 1 . . . Special Weapon . | . . . . . . . . . . . . . . . . . . . . . . . . . Impact Weapon . | . . . . . . . . . . . . . . . . . . . . . . . . . Slashing Weapon . | . . . . . . . . . . . . . . . . . . . . . . . . . Piercing Weapon . | . . . . . . . . . . . . . . . . . . . . . . . . . Special Melee Weapon 2 | . 1 . . . . . . . . . 1 . . . . . . . . . . . . . Unidentified Prototypes 15 | . . . . . . . . . . 3 . . . . . . . 3 . 1 2 . 1 5 Corrupted Parts 1 | . . . . . . . . . . . . . . . . . . . . . . . . 1 System Corruption 5 | . . . . . . . . . . . . . . . . . . . . . . . . 5 Parts Lost 73 | . . . 6 4 . . 7 2 . . 4 3 1 . 5 2 14 1 . 3 6 4 2 9 Power 11 | . . . 1 1 . . 1 . . . 2 . . . 1 . 1 . . 1 2 1 . . Propulsion 22 | . . . 1 3 . . 2 1 . . 2 2 . . 2 2 3 . . . . . 1 3 Utility 21 | . . . 2 . . . 1 . . . . 1 1 . 1 . 4 1 . 1 3 2 1 3 Weapon 19 | . . . 2 . . . 3 1 . . . . . . 1 . 6 . . 1 1 1 . 3 Highest Loss Streak 9 | . . . 3 3 . . 6 1 . . 2 2 1 . 5 1 7 1 . 3 5 3 1 9 To Critical Strikes . | . . . . . . . . . . . . . . . . . . . . . . . . . Average Backups 17 | 2 12 15 19 17 18 17 19 19 19 19 19 19 20 20 16 16 16 18 18 18 16 15 14 16 Power 1 | . 1 1 . . . . . 1 1 1 . 1 2 2 1 1 2 3 3 3 1 . . . Propulsion 3 | 1 3 4 4 3 2 2 2 3 4 5 4 2 2 3 1 1 1 2 2 2 2 2 2 1 Utility 8 | . 3 4 7 8 8 10 10 9 8 8 8 8 9 9 8 7 8 9 9 9 8 7 8 9 Weapon 4 | . 4 5 4 5 6 4 4 4 4 4 5 5 5 5 4 4 3 3 3 3 3 4 3 3 Tool/Special . | . . . . . . . . . . . . . . . . . . . . . . . . . Unused Backups 64 | . 6 . 9 . . . 11 2 3 1 4 . 1 . 1 2 4 6 . . 6 . . 8 Power 6 | . . . 1 . . . 2 . . . . . . . 1 . . 1 . . 1 . . . Propulsion 12 | . 2 . 1 . . . 1 . 1 1 . . . . . . 3 3 . . . . . . Utility 24 | . 2 . 6 . . . 2 2 2 . 1 . . . . 2 . . . . . . . 7 Weapon 22 | . 2 . 1 . . . 6 . . . 3 . 1 . . . 1 2 . . 5 . . 1 Tool/Special . | . . . . . . . . . . . . . . . . . . . . . . . . . Average Slot Usage (%) 91 | . 99 100 98 99 77 99 95 99 100 98 99 99 96 78 99 97 89 80 86 82 76 76 70 63 Engine 6 | . 6 . 7 10 11 11 5 9 9 9 10 7 7 7 10 9 5 1 . 1 3 . 5 7 Core 3 | . 7 14 3 . . . 3 . . . 3 7 7 7 3 2 6 6 6 3 . . . . Treads 26 | . 27 28 32 32 33 33 35 35 36 35 29 29 30 30 29 23 10 11 13 13 15 17 12 10 Device 15 | . 14 14 20 22 22 22 10 13 9 16 22 23 19 15 22 23 16 17 13 12 8 10 11 11 Storage 8 | . 14 14 11 11 11 11 9 9 9 9 7 7 7 7 7 6 6 6 6 6 5 5 5 4 Processor 8 | . . . . . . . 5 12 18 9 7 7 7 7 7 8 13 13 13 13 15 15 5 6 Protection 2 | . . . . . . . 7 . . . . . . . . . 2 1 6 6 3 6 10 4 Energy Cannon 9 | . . . 17 21 . 21 11 18 11 13 15 15 15 2 14 13 10 . . 1 1 . . . Ballistic Gun 6 | . 27 28 4 . . . 6 . 6 4 . . . . . . 4 15 20 15 7 8 16 10 Peak Build Rating 126 | 7 11 11 21 21 20 20 29 29 38 38 47 46 46 43 54 66 68 106 106 116 121 120 107 126 Average Rating 51 | 5 9 11 18 20 15 19 26 28 34 36 45 45 44 36 49 62 62 88 106 108 113 114 91 84 On Entrance 48 | . 7 11 11 21 20 16 20 28 29 38 37 46 46 43 43 52 63 65 106 106 116 116 106 76 Naked Turns . | . . . . . . . . . . . . . . . . . . . . . . . . . Heaviest Build 105 | 14 29 49 57 57 57 57 73 61 63 68 78 76 76 75 80 85 98 105 105 105 104 96 92 103 Greatest Support 188 | 40 40 40 63 63 60 60 80 80 83 86 89 89 83 83 94 94 28 160 160 160 188 188 188 160 Greatest Overweight (x) 3 | 1 . 1 . . . . 1 . . . 1 1 . . 1 2 3 3 . . . . . 1 Average Overweight (x) . | . . . . . . . . . . . . . . . . . 2 . . . . . . . Largest Inventory Capacity 20 | 8 15 20 20 20 20 20 20 20 20 20 20 20 20 20 20 20 20 20 20 20 20 20 20 20 Average Capacity 19 | 7 13 17 20 20 20 20 20 20 20 20 20 20 20 20 20 20 20 20 20 20 20 20 20 19 Most Carried 20 | 5 15 15 20 20 19 18 20 20 20 20 20 20 20 20 20 20 20 20 20 20 20 20 20 20 Average Carried 18 | 2 12 15 19 17 18 17 19 19 19 19 19 19 19 20 18 19 18 19 20 20 19 18 17 19 Final Capacity 20 | 8 15 20 20 20 20 20 20 20 20 20 20 20 20 20 20 20 20 20 20 20 20 20 20 5 Final Carried 20 | 4 15 15 20 16 19 17 20 18 20 20 20 20 20 20 20 19 20 20 20 20 19 16 20 2 Class Distribution -------------------- 41% | Mutant 19% | Scavenger-Mutant 18% | Scavenger-Tank 8% | Derelict-Skirmisher 6% | Commander-Mutant Dominant Class ---------------- Mutant | -10/Materials Scavenger-Mutant | -10/Mines Mutant | -9/Materials Mutant | -9/Mines Mutant | -9/Exiles Mutant | -8/Mines Scavenger-Mutant | -8/Materials Scavenger-Mutant | -8/Garrison Mutant | -8/Materials Commander-Mutant | -8/Storage Mutant | -7/Factory Mutant | -7/Lower Caves Mutant | -7/Lower Caves Mutant | -7/Data Miner Mutant | -6/Proximity Caves Derelict-Skirmisher | -6/Factory Derelict-Skirmisher | -6/Extension Scavenger-Tank | -6/Cetus Scavenger-Tank | -6/Archives Scavenger-Tank | -6/Hub_04(d) Scavenger-Tank | -5/Factory Scavenger-Tank | -5/Upper Caves Scavenger-Tank | -5/Upper Caves Scavenger-Mutant | -5/Warlord Resources | -11 -10 -10 -9 -9 -9 -8 -8 -8 -8 -8 -7 -7 -7 -7 -6 -6 -6 -6 -6 -6 -5 -5 -5 -5 ----------- Run | Yrd Mat Min Mat Min Exi Min Mat Gar Mat Sto Fac Low Low Dat Pro Fac Ext Cet Arc Hub Fac Upp Upp War Matter Collected 7103 | 306 356 58 714 61 . . 437 35 348 238 167 63 67 . 140 146 649 313 76 467 1423 368 185 486 Remotely 155 | . . . . . . . . . . . . . . . . . . . . . 155 . . . Salvage Created 13701 | 88 571 66 2043 144 . . 1347 541 1651 570 619 359 148 . 182 440 1455 347 40 945 1608 373 118 46 Parts 674 | 10 34 7 121 3 . . 68 17 78 28 25 9 9 . 13 16 53 14 4 57 83 20 . 5 Haulers Intercepted 24 | . 2 . 6 . . . 5 . 5 3 . . . . . . 2 . . . 1 . . . Recyclers Shooed 7 | . 1 . 1 . . . . . 3 1 . . . . . 1 . . . . . . . . Parts Field Recycled . | . . . . . . . . . . . . . . . . . . . . . . . . . Retrieved Matter . | . . . . . . . . . . . . . . . . . . . . . . . . . Parts Self-Destructed 45 | . . . . . . . . . . . . 9 6 . 10 . . . . . . 20 . . Prevented . | . . . . . . . . . . . . . . . . . . . . . . . . . Kills | -11 -10 -10 -9 -9 -9 -8 -8 -8 -8 -8 -7 -7 -7 -7 -6 -6 -6 -6 -6 -6 -5 -5 -5 -5 ------- Run | Yrd Mat Min Mat Min Exi Min Mat Gar Mat Sto Fac Low Low Dat Pro Fac Ext Cet Arc Hub Fac Upp Upp War Combat Hostiles Destroyed 245 | . 10 3 42 10 . . 20 14 23 5 14 4 3 . 4 9 26 4 . 8 27 11 3 5 Guns 77 | . 6 3 8 . . . 8 . 4 1 . . . . . . 16 4 . 8 12 6 1 . Cannons 137 | . . . 30 10 . . 11 11 18 4 12 4 3 . 1 7 8 . . . 15 3 . . AOE 19 | . 3 . 3 . . . . . . . . . . . 3 . 1 . . . . 2 2 5 Classes Destroyed 24 | 1 7 . 4 2 . . 2 . 1 . 1 . 1 . 2 . . . . . 1 . . 2 Worker 10 | . 1 . . . . . 3 . 2 . . . . . . . . . . 2 2 . . . Builder 12 | . 1 . 2 . . . . . 2 . . . . . . 1 2 . . 2 2 . . . Tunneler 9 | 4 . 1 1 . . . . . 1 . . . . . . 1 1 . . . . . . . Hauler 24 | . 2 . 6 . . . 5 . 5 3 . . . . . . 2 . . . 1 . . . Recycler 7 | . . . 1 . . . 1 . 1 2 . . . . . . . . . 1 1 . . . Minesweeper 1 | . . . . . . . . . . . . . . . 1 . . . . . . . . . Mechanic 1 | . . . . . . . 1 . . . . . . . . . . . . . . . . . Operator 7 | . 1 . 1 . . . 2 . . . . . . . . . 2 . 1 . . . . . Watcher 18 | . 3 . 3 . . . 2 . 3 . 1 . . . . 1 2 1 . . 2 . . . Swarmer 56 | . 3 3 7 . . . 3 6 . . 5 . 3 . 3 4 10 . . . 4 5 . . Saboteur 3 | . . . . . . . . . . . . . . . . . . . . . . . . 3 Grunt 97 | . 7 . 24 . . . 11 7 17 2 2 3 . . . 1 8 . . 1 10 2 2 . Brawler 3 | . . . 1 . . . . . . . . . . . . . . . . . 1 1 . . Duelist 4 | . . . 1 . . . . . . . 1 . . . . . 1 . . . 1 . . . Protector 1 | . . . . . . . . . . . . . . . . . . . . . 1 . . . Sentry 36 | . . . 9 . . . 5 1 4 3 2 . . . . 2 4 . . 3 2 . 1 . Demolisher 2 | . . . . 2 . . . . . . . . . . . . . . . . . . . . Hunter 9 | . . . . . . . . . 2 . . . . . . . 2 . . 1 2 2 . . Programmer 16 | . . . . . . . . . . . 4 1 . . . 2 . . . 1 6 1 . 1 Heavy 1 | . . . . . . . 1 . . . . . . . . . . . . . . . . . Behemoth 2 | . . . . . . . . . . . . . . . 1 . 1 . . . . . . . Cetus Guard 4 | . . . . . . . . . . . . . . . . . . 4 . . . . . . Enhanced Grunt 1 | . . . . . . . . . . . . . . . . . . . . 1 . . . . Lightning 2 | . . . . . . . . . . . . . . . . . . . . 2 . . . . Striker 1 | . . . . . . . . . . . . . . . . . . . . . . . . 1 Samaritan 4 | . . . . . . . . . . . . . 2 . 1 . . . . . . . 1 . Assembled 8 | . . . . 8 . . . . . . . . . . . . . . . . . . . . Butcher 1 | . . . . . . . . . . . . . . . . . . 1 . . . . . . Guerrilla 1 | . . . . . . . . . . . . . . . . . . . . 1 . . . . Best Kill Streak 12 | 4 3 2 8 7 . . 10 3 4 2 3 3 3 . 3 4 12 4 1 4 9 5 3 5 Combat Bots Only 12 | . 3 2 5 7 . . 8 3 4 1 3 3 3 . 3 4 12 3 . 3 5 5 3 5 Max Kills in Single Turn 5 | 1 2 1 2 2 . . 2 1 2 2 1 1 1 . 2 1 2 2 1 5 2 2 1 2 Gunslinging 1 | . . . . . . . . . . . . . . . . . 1 . . . . . . . Exploded 2 | . 2 . 2 . . . . . . . . . . . 2 . 1 . . . . 1 1 2 Melee . | . . . . . . . . . . . . . . . . . . . . . . . . . Uniques/NPCs Destroyed . | . . . . . . . . . . . . . . . . . . . . . . . . . Combat | -11 -10 -10 -9 -9 -9 -8 -8 -8 -8 -8 -7 -7 -7 -7 -6 -6 -6 -6 -6 -6 -5 -5 -5 -5 -------- Run | Yrd Mat Min Mat Min Exi Min Mat Gar Mat Sto Fac Low Low Dat Pro Fac Ext Cet Arc Hub Fac Upp Upp War Hostile Shots Fired 1584 | . 38 16 153 55 . . 132 66 99 16 107 40 17 . 64 116 205 24 4 102 139 35 20 136 Missed 514 | . 9 3 38 18 . . 41 18 32 5 31 12 7 . 19 45 72 10 1 32 50 9 6 56 Hits 1070 | . 29 13 115 37 . . 91 48 67 11 76 28 10 . 45 71 133 14 3 70 89 26 14 80 Melee 37 | . . . 7 8 . . . . . . 8 . . . . . 3 . . . 5 2 . 4 Projectile 1033 | . 29 13 108 29 . . 91 48 67 11 68 28 10 . 45 71 130 14 3 70 84 24 14 76 AOE 23 | . . . . 7 . . . . . . 1 . . . . . . . . . . . . 15 Critical Strikes 45 | . 2 . 4 1 . . 3 1 3 . 5 4 . . . 3 5 1 . 4 6 . . 3 Part Disruptions 6 | . . . . 3 . . . . . . 1 . . . . . . . . 1 1 . . . Damage Taken 17756 | . 334 105 1446 799 . . 1798 581 1050 203 956 322 111 . 1013 555 1681 219 94 813 1783 530 740 2623 Core 2163 | . 12 16 116 110 . . 162 96 123 6 106 48 12 . 44 57 159 24 . 58 55 15 . 944 Absorbed by Shields 1904 | . . . . . . . . 17 . . 263 123 44 . 172 224 515 152 30 252 . . 28 84 Reduced by Siege Mode 82 | . . . . . . . . . . . . . . . . . . . . 10 72 . . . Ignored by Resistances 34 | . . . . . . . . . . . . . . . . . . . . . . . . 34 Regen/Repaired (Parts) 1278 | . 42 . 57 . . . 131 . . 271 . . . . . 137 220 . . . . . . 420 Core Remaining (%) 65 | 100 . 88 . . . 43 . . . 29 . . . . 70 . . . . 64 . . . . Volleys Fired 877 | 9 55 11 131 19 . . 91 41 93 26 49 17 12 . 26 42 89 17 9 34 71 13 12 10 Largest 3 | 2 2 2 2 2 . . 2 2 2 2 2 2 2 . 2 3 3 3 3 3 3 3 3 3 Hottest 220 | 40 50 40 136 136 . . 136 136 133 133 133 125 125 . 130 210 220 93 93 105 105 108 108 108 Shots Fired 1919 | 18 110 23 261 36 . . 173 82 186 52 96 34 24 . 52 119 236 51 28 92 161 34 33 18 Gun 835 | 18 108 23 66 . . . 45 . 64 17 . . . . . 35 115 51 28 89 110 24 30 12 Cannon 1057 | . . . 190 35 . . 128 82 122 35 96 34 24 . 49 84 115 . . 3 51 8 1 . Launcher 27 | . 2 . 5 1 . . . . . . . . . . 3 . 6 . . . . 2 2 6 Special . | . . . . . . . . . . . . . . . . . . . . . . . . . Kinetic 815 | 18 108 23 66 . . . 45 . 64 17 . . . . . . 77 51 28 89 155 32 30 12 Thermal 1053 | . . . 190 35 . . 128 82 122 35 96 34 24 . 49 119 139 . . . . . . . Explosive 27 | . 2 . 5 1 . . . . . . . . . . 3 . 6 . . . . 2 2 6 Electromagnetic 24 | . . . . . . . . . . . . . . . . . 14 . . 3 6 . 1 . Robot Hit Streak 24 | 5 10 5 19 4 . . 13 10 16 10 11 8 7 . 24 11 12 16 6 11 15 5 7 4 Robot Miss Streak 10 | 4 3 3 4 3 . . 4 2 4 1 5 2 1 . 2 5 8 4 2 10 6 5 4 7 Penetration Max 2 | . . . . . . . . . 1 1 . . . . . . 2 1 1 1 1 1 . 1 Secondary Targets 8 | . 1 1 . . . . . . . . . . . . . . 2 2 . 1 1 . . . Max Gunslinging Chain 1 | . 1 1 . . . . . . . . . . . . . . 1 1 . 1 1 . . . Shots Hit Robots 1156 | 11 71 13 170 15 . . 122 46 114 28 57 25 15 . 41 42 125 39 20 52 113 21 15 1 Core Hits 676 | 6 31 5 64 11 . . 53 17 52 11 18 10 7 . 10 15 111 30 13 36 66 32 26 52 Critical Kills 21 | . . . 1 . . . 1 2 3 . 2 . . . . 1 . 2 . 1 7 1 . . Critical Parts Destroyed 23 | . 1 . . . . . 1 . 2 . . . . . . . 2 2 2 4 6 2 . 1 Critical Strikes 52 | . 1 . 1 . . . 2 2 5 . 2 . . . . 2 4 4 2 6 15 4 1 1 Burn 3 | . . . . . . . . . . . . . . . . 1 2 . . . . . . . Meltdown 8 | . . . 1 . . . 1 2 1 . 2 . . . . 1 . . . . . . . . Destroy 38 | . 1 . . . . . 1 . 4 . . . . . . . 2 4 2 5 13 4 1 1 Blast 2 | . . . . . . . . . . . . . . . . . . . . . 2 . . . Corrupt 1 | . . . . . . . . . . . . . . . . . . . . 1 . . . . Melee Attacks 1 | . . . . . . . . . . . 1 . . . . . . . . . . . . . Impact . | . . . . . . . . . . . . . . . . . . . . . . . . . Slashing . | . . . . . . . . . . . . . . . . . . . . . . . . . Piercing . | . . . . . . . . . . . . . . . . . . . . . . . . . Sneak Attacks 1 | . . . . . . . . . . . 1 . . . . . . . . . . . . . Combat Hostiles . | . . . . . . . . . . . . . . . . . . . . . . . . . Follow-up Attacks . | . . . . . . . . . . . . . . . . . . . . . . . . . Damage Inflicted 33038 | 121 987 182 3683 374 . . 2853 1110 3066 815 1478 697 378 . 1501 1202 4348 1063 597 1862 3894 881 482 1464 Guns 10638 | 118 784 157 621 . . . 801 . 777 215 . . . . . 252 1913 1063 597 1097 1616 320 201 106 Cannons 17254 | . . . 2595 326 . . 2035 1110 2199 574 1451 697 378 . 1122 890 1587 . . 20 2140 130 . . Explosions 4785 | . 189 . 415 48 . . . . . . . . . . 379 . 848 . . 736 100 431 281 1358 Melee . | . . . . . . . . . . . . . . . . . . . . . . . . . Ramming 361 | 3 14 25 52 . . . 17 . 90 26 27 . . . . 60 . . . 9 38 . . . Kinetic 12350 | 118 784 157 621 . . . 801 . 777 215 . . . . . . 1672 1063 597 1097 3691 450 201 106 Thermal 15205 | . . . 2595 326 . . 2035 1110 2199 574 1451 697 378 . 1122 1142 1576 . . . . . . . Explosive 3982 | . 189 . 415 48 . . . . . . . . . . 379 . 781 . . . 100 431 281 1358 Electromagnetic 1140 | . . . . . . . . . . . . . . . . . 319 . . 756 65 . . . Impact . | . . . . . . . . . . . . . . . . . . . . . . . . . Slashing . | . . . . . . . . . . . . . . . . . . . . . . . . . Piercing . | . . . . . . . . . . . . . . . . . . . . . . . . . Highest Corruption 19 | . 3 3 1 1 1 1 . . . . 4 6 6 6 6 4 4 4 4 3 11 19 19 19 Average Corruption 5 | . 2 3 1 1 1 1 . . . . 3 5 6 6 6 3 4 4 3 2 6 12 19 11 Corruption Purged 4 | . . . . . . . . . . . . . . . . . . . 4 . . . . . Corruption Blocked . | . . . . . . . . . . . . . . . . . . . . . . . . . Effects 299 | . 8 16 8 2 1 4 . . . . 20 17 29 4 21 18 33 14 5 1 34 37 23 4 Message Errors 75 | . 2 3 4 1 1 2 . . . . 5 8 4 1 7 4 7 2 2 . 8 6 7 1 Matter Fused 75 | . 5 3 2 1 . . . . . . 6 3 11 1 4 2 9 1 1 . 7 11 7 1 Heat Flow Errors 44 | . . 1 . . . . . . . . 3 1 7 1 5 5 6 3 1 . 4 6 1 . Energy Discharges 27 | . . 3 . . . . . . . . 1 1 1 . . 1 2 4 . . 4 7 2 1 Parts Rejected 2 | . . . . . . . . . . . . 1 . . . . . . . . 1 . . . Parts Fused 5 | . . . . . . . . . . . . 1 1 . . . 1 . . . 1 . 1 . Data Loss (minor) 31 | . 1 2 2 . . 1 . . . . 2 1 2 . 2 3 2 3 . 1 5 1 3 . Data Loss (major) 17 | . . 3 . . . 1 . . . . 1 1 1 . 1 2 2 1 . . 1 2 1 . Misfires 14 | . . 1 . . . . . . . . 2 . 1 . 1 1 2 . 1 . 1 3 . 1 Alerts 3 | . . . . . . . . . . . . . . 1 . . . . . . 1 . 1 . Weapon Failures 6 | . . . . . . . . . . . . . 1 . 1 . 2 . . . 1 1 . . Overload Shots . | . . . . . . . . . . . . . . . . . . . . . . . . . Overflow Damage 580 | . . . 21 2 . . 38 23 28 10 51 60 34 . 65 47 33 . . 62 75 5 . 26 Projectiles 325 | . . . 14 2 . . 38 23 21 10 51 60 34 . 9 34 14 . . . 15 . . . Explosions 235 | . . . 7 . . . . . . . . . . . 56 . 19 . . 62 60 5 . 26 Melee 20 | . . . . . . . . . 7 . . . . . . 13 . . . . . . . . Knockbacks 19 | . . 1 . . . . . . 1 1 1 . . . . 1 . . . . 14 . . . Impact 5 | . . 1 . . . . . . 1 1 1 . . . . 1 . . . . . . . . Kinetic 12 | . . . . . . . . . . . . . . . . . . . . . 12 . . . Secondary 2 | . . . . . . . . . . . . . . . . . . . . . 2 . . . Self-Inflicted Damage 681 | . 42 . . 42 . . . . . . . . . . . . 54 . . 98 . 46 . 399 Shots 22 | . 2 . . 1 . . . . . . . . . . . . 1 . . 1 . 3 . 14 Rammed 41 | 2 3 3 5 . . . 2 . 13 4 4 . . . . 3 . . . 1 1 . . . Targets Rammed 49 | 2 3 3 7 . . . 2 . 15 5 4 . . . . 4 . . . 1 3 . . . Kicked . | . . . . . . . . . . . . . . . . . . . . . . . . . Crushed 8 | . . . 2 . . . . . 2 1 . . . . . 1 . . . . 2 . . . Highest Temperature 359 | . 12 156 108 200 . . 297 270 186 . 190 136 250 194 332 291 359 237 330 329 213 242 226 12 Average Temperature 76 | . 4 57 25 75 . . 110 68 37 . 83 16 42 103 138 44 109 71 140 118 49 100 130 6 Received Heat Transfer 3934 | . 132 . 543 220 . . 684 231 540 63 175 197 . . 90 60 484 . 6 14 216 18 57 204 Effects 19 | . . . . . . . 4 . . . . . . . 6 2 2 . . 5 . . . . Shutdowns 2 | . . . . . . . . . . . . . . . . . 2 . . . . . . . Energy Bleed 2 | . . . . . . . . . . . . . . . 1 . . . . 1 . . . . Interference 15 | . . . . . . . 4 . . . . . . . 5 2 . . . 4 . . . . Siege Activations 3 | . . . . . . . . . . . . . . . . . . . . 1 1 1 . . Total Turns 58 | . . . . . . . . . . . . . . . . . . . . 20 33 5 . . Longest Duration 33 | . . . . . . . . . . . . . . . . . . . . 20 33 5 . . Martial Activations . | . . . . . . . . . . . . . . . . . . . . . . . . . Shielding Activations . | . . . . . . . . . . . . . . . . . . . . . . . . . Robots Disrupted . | . . . . . . . . . . . . . . . . . . . . . . . . . Combat Hostiles . | . . . . . . . . . . . . . . . . . . . . . . . . . Robots Corrupted 2 | . . . . . . . . . 1 . . . . . . . . . . 1 . . . . Combat Hostiles . | . . . . . . . . . . . . . . . . . . . . . . . . . Parts Fried 4 | . 2 . . . . . . . . . . . . . . 1 . . . 1 . . . . Impact Corruptions 2 | . . . . . . . . . 1 . . . . . . 1 . . . . . . . . Robots Melted 10 | . . . 1 . . . 1 3 1 . 2 . . . . 2 . . . . . . . . Combat Hostiles 10 | . . . 1 . . . 1 3 1 . 2 . . . . 2 . . . . . . . . Parts Melted 62 | . . . 9 . . . 4 7 8 2 12 2 2 . 1 12 2 . . . 1 . . . Heat Transferred 23739 | . . . 4440 592 . . 3441 1776 3034 777 2035 962 555 . 1517 1971 2639 . . . . . . . Parts Sabotaged . | . . . . . . . . . . . . . . . . . . . . . . . . . Parts Stolen . | . . . . . . . . . . . . . . . . . . . . . . . . . Parts Stripped . | . . . . . . . . . . . . . . . . . . . . . . . . . Power Chain Reactions 1 | . . . . . . . . . . . . . . . . . 1 . . . . . . . Alert | -11 -10 -10 -9 -9 -9 -8 -8 -8 -8 -8 -7 -7 -7 -7 -6 -6 -6 -6 -6 -6 -5 -5 -5 -5 ------- Run | Yrd Mat Min Mat Min Exi Min Mat Gar Mat Sto Fac Low Low Dat Pro Fac Ext Cet Arc Hub Fac Upp Upp War Maximum Alert Level 3 | . . . 3 1 . . 1 2 1 1 1 . . . . . 3 2 1 3 2 . . . Low Security (%) 62 | 100 100 100 46 65 . 100 52 26 23 61 99 . . . . 100 88 . 1 16 45 . . . Level 1 26 | . . . 23 34 . . 47 57 76 38 . . . . . . 3 . 98 25 42 . . . Level 2 8 | . . . 24 . . . . 16 . . . . . . . . 2 100 . 10 11 . . . Level 3 2 | . . . 5 . . . . . . . . . . . . . 6 . . 47 . . . . Level 4 . | . . . . . . . . . . . . . . . . . . . . . . . . . Level 5 . | . . . . . . . . . . . . . . . . . . . . . . . . . High Security . | . . . . . . . . . . . . . . . . . . . . . . . . . Max Security . | . . . . . . . . . . . . . . . . . . . . . . . . . Peak Influence 978 | 5 97 65 712 270 . . 290 443 345 299 201 . . . . 122 928 632 355 978 448 . . . Initial 517 | . 3 9 . 270 . . . 87 215 133 49 . . . . . 55 517 194 75 448 . . . Average 173 | 2 23 11 272 148 . . 137 259 248 158 75 . . . . 20 112 519 286 575 234 . . . Influence Increases 10181 | 20 371 90 1352 62 . . 722 376 821 698 594 110 70 . 105 335 1403 338 222 1226 814 240 60 152 Destroy 0b10 Robot/C 5440 | . 200 60 840 40 . . 400 280 460 280 340 80 60 . 80 180 680 160 80 280 520 220 60 140 Destroy 0b10 Robot/NC 475 | 20 40 5 70 . . . 70 . 70 35 5 10 . . 5 15 45 10 5 25 45 . . . Destroy Leader 1152 | . 60 10 238 10 . . 124 20 136 70 82 20 10 . 20 52 114 . . 70 96 20 . . Allied During Kill 1253 | . . . . . . . . . 10 185 18 . . . . . 458 163 85 322 . . . 12 Trap Triggered on 0b10 40 | . 20 . . . . . . . . . . . . . . 20 . . . . . . . . Successful Hack 305 | . 26 . 61 . . . 6 21 18 47 64 . . . . 28 26 . . . 8 . . . Disable Machine 690 | . 15 . 105 . . . 30 . 45 75 30 . . . . 15 30 . 45 255 45 . . . Destroy Structure 541 | . 10 . 23 12 . . 2 25 37 6 10 . . . . 10 50 5 7 244 100 . . . Lose Combat Pursuer 285 | . . 15 15 . . . 90 30 45 . 45 . . . . 15 . . . 30 . . . . Influence Decreases 10173 | 15 352 114 658 722 34 . 588 67 948 905 546 267 70 . 105 221 592 776 493 525 1403 560 68 144 Entered New Map 2546 | . 2 15 . 424 34 . . 47 228 183 60 59 . . . . 59 408 293 141 469 122 2 . Time Decay 5844 | 15 350 99 611 198 . . 368 . 550 512 424 178 70 . 105 211 405 318 160 214 574 398 66 18 Lost Part 556 | . . . 47 40 . . 70 20 . . 30 30 . . . 10 93 10 . 30 60 40 . 76 Lost Ally 477 | . . . . 60 . . . . 20 60 32 . . . . . 35 40 40 140 . . . 50 Purge Threat 750 | . . . . . . . 150 . 150 150 . . . . . . . . . . 300 . . . Squads Dispatched 50 | . 2 . 7 . . . 5 . 6 . 9 . . . . 3 5 . . 6 7 . . . Investigation 12 | . . . 4 . . . 2 . 3 . 1 . . . . 1 . . . 1 . . . . Extermination 11 | . . . . . . . . . . . 5 . . . . 2 . . . 1 3 . . . Reinforcement 21 | . 2 . 2 . . . 3 . 3 . 1 . . . . . 5 . . 2 3 . . . Assault 2 | . . . 1 . . . . . . . . . . . . . . . . . 1 . . . Garrison 4 | . . . . . . . . . . . 2 . . . . . . . . 2 . . . . Intercept . | . . . . . . . . . . . . . . . . . . . . . . . . . Searches Triggered . | . . . . . . . . . . . . . . . . . . . . . . . . . Data Miner Redirects 1 | . . . . . . . . . . . . . . . . 1 . . . . . . . . Construction Impeded 7 | . . . . . . . 1 . 1 . . . . . . . 3 . . 1 1 . . . Haulers Reinforced 2 | . . . . . . . . . . . . . . . . . . . . . 2 . . . Active Scanning Responses . | . . . . . . . . . . . . . . . . . . . . . . . . . Cargo Convoy Interrupts 1 | . . . . . . . . . . . 1 . . . . . . . . . . . . . Stealth | -11 -10 -10 -9 -9 -9 -8 -8 -8 -8 -8 -7 -7 -7 -7 -6 -6 -6 -6 -6 -6 -5 -5 -5 -5 --------- Run | Yrd Mat Min Mat Min Exi Min Mat Gar Mat Sto Fac Low Low Dat Pro Fac Ext Cet Arc Hub Fac Upp Upp War Distress Signals 28 | . 2 . 5 . . . 5 . 4 2 . . . . . . 4 2 . 2 2 . . . Communications Jammed . | . . . . . . . . . . . . . . . . . . . . . . . . . Distress Signals . | . . . . . . . . . . . . . . . . . . . . . . . . . Times Spotted 405 | . 19 4 58 23 . . 36 16 32 18 19 5 3 . 4 9 45 10 11 14 34 11 3 31 Peak Tracking Total 23 | . 3 3 4 16 . . 7 6 4 5 4 4 3 . 3 4 10 5 1 4 5 5 3 23 Tactical Retreats 14 | . . 1 1 1 . . 4 1 2 . 1 . . . . 1 . . . 2 . . . . Traps | -11 -10 -10 -9 -9 -9 -8 -8 -8 -8 -8 -7 -7 -7 -7 -6 -6 -6 -6 -6 -6 -5 -5 -5 -5 ------- Run | Yrd Mat Min Mat Min Exi Min Mat Gar Mat Sto Fac Low Low Dat Pro Fac Ext Cet Arc Hub Fac Upp Upp War Traps Triggered 24 | . 2 . 1 . . . 2 2 2 2 3 . . . . 1 7 . . . 2 . . . Indirectly . | . . . . . . . . . . . . . . . . . . . . . . . . . Trap Hack Attempts 17 | . 17 . . . . . . . . . . . . . . . . . . . . . . . Triggered 1 | . 1 . . . . . . . . . . . . . . . . . . . . . . . Disarmed . | . . . . . . . . . . . . . . . . . . . . . . . . . Reprogrammed 4 | . 4 . . . . . . . . . . . . . . . . . . . . . . . Reused 4 | . 2 . . . . . . . . . . . . . . 2 . . . . . . . . Traps Reconfigurated 8 | . . . . . . . . . . . . . . . . 8 . . . . . . . . Traps Extracted . | . . . . . . . . . . . . . . . . . . . . . . . . . Installed . | . . . . . . . . . . . . . . . . . . . . . . . . . Triggered 4 | . 2 . . . . . . . . . . . . . . 2 . . . . . . . . Most Traps Carried 4 | . . . . . . . . . . . . . . . 4 2 2 2 . . . . . . Machines | -11 -10 -10 -9 -9 -9 -8 -8 -8 -8 -8 -7 -7 -7 -7 -6 -6 -6 -6 -6 -6 -5 -5 -5 -5 ---------- Run | Yrd Mat Min Mat Min Exi Min Mat Gar Mat Sto Fac Low Low Dat Pro Fac Ext Cet Arc Hub Fac Upp Upp War Machines Disabled 51 | . 1 . 7 . . . 2 . 3 5 2 . . . . 1 6 . 3 17 3 . 1 . Max in Single Turn 14 | . 1 . 1 . . . 1 . 1 1 1 . . . . 1 2 . 1 14 2 . 1 . Garrison Access 4 | . . . . . . . . . 1 1 1 . . . . 1 . . . . . . . . Network Hub 2 | . . . . . . . . . . . . . . . . . . . . 2 . . . . Machines Repaired . | . . . . . . . . . . . . . . . . . . . . . . . . . Machines Dismantled . | . . . . . . . . . . . . . . . . . . . . . . . . . Machines Sabotaged . | . . . . . . . . . . . . . . . . . . . . . . . . . Overloaded Fab Kills . | . . . . . . . . . . . . . . . . . . . . . . . . . Hacking | -11 -10 -10 -9 -9 -9 -8 -8 -8 -8 -8 -7 -7 -7 -7 -6 -6 -6 -6 -6 -6 -5 -5 -5 -5 --------- Run | Yrd Mat Min Mat Min Exi Min Mat Gar Mat Sto Fac Low Low Dat Pro Fac Ext Cet Arc Hub Fac Upp Upp War Machines Accessed 94 | . 6 . 11 . 2 . 10 3 9 14 10 . . 3 . 5 8 3 . 1 4 . 1 4 Terminals 66 | . 5 . 9 . . . 6 3 7 12 7 . . . . 3 7 3 . 1 3 . . . Fabricators 2 | . . . . . . . . . . . 1 . . . . . . . . . 1 . . . Repair Stations 6 | . 1 . 1 . . . 1 . . 1 . . . . . 1 1 . . . . . . . Recycling Units 5 | . . . 1 . . . 2 . 1 . 1 . . . . . . . . . . . . . Scanalyzers . | . . . . . . . . . . . . . . . . . . . . . . . . . Garrison Access 5 | . . . . . . . 1 . 1 1 1 . . . . 1 . . . . . . . . Total Hacks 256 | . 19 . 28 . 5 . 29 4 24 35 22 . . 28 . 10 13 5 . 2 25 . 1 6 Successful 132 | . 11 . 10 . 5 . 12 3 10 19 12 . . 28 . 5 5 . . . 5 . 1 6 Failed 123 | . 7 . 18 . . . 17 1 14 16 10 . . . . 5 8 5 . 2 20 . . . Catastrophic 36 | . 1 . 3 . . . 7 . 3 4 2 . . . . 1 5 2 . . 8 . . . Database Lockouts 1 | . 1 . . . . . . . . . . . . . . . . . . . . . . . Manual 104 | . 10 . 15 . 1 . 19 . 18 5 9 . . . . 3 10 1 . . 11 . . 2 Terminals 176 | . 16 . 23 . . . 22 4 21 27 15 . . . . 6 11 5 . 2 24 . . . Fabricators 6 | . . . . . . . . . . . 5 . . . . . . . . . 1 . . . Repair Stations 19 | . 3 . 2 . . . 2 . . 7 . . . . . 3 2 . . . . . . . Recycling Units 9 | . . . 3 . . . 4 . 1 . 1 . . . . . . . . . . . . . Scanalyzers . | . . . . . . . . . . . . . . . . . . . . . . . . . Garrison Access 6 | . . . . . . . 1 . 2 1 1 . . . . 1 . . . . . . . . Terminal Hacks 95 | . 9 . 4 . 5 . 5 3 6 14 5 . . 28 . 2 3 . . . 4 . 1 6 Record 16 | . . . . . 4 . . . . . . . . 6 . . . . . . . . 1 5 Part Schematic 14 | . . . . . . . . . . 1 . . . 13 . . . . . . . . . . Robot Schematic 6 | . . . . . . . . . . . . . . 6 . . . . . . . . . . Robot Analysis 10 | . 4 . 1 . . . 3 . 1 . 1 . . . . . . . . . . . . . Prototype ID Bank 4 | . 1 . . . . . . . . . . . . 3 . . . . . . . . . . Open Door 9 | . . . . . . . . 1 . 6 . . . . . 1 . . . . . . . 1 Branch Access Points 4 | . . . 1 . . . . . 1 . 1 . . . . . . . . . 1 . . . Emergency Access Points 1 | . . . . . . . . 1 . . . . . . . . . . . . . . . . Terminal Index 1 | . . . . . . . . . . . 1 . . . . . . . . . . . . . Alert Level 7 | . 1 . . . . . . . 1 3 . . . . . . 1 . . . 1 . . . Unreport Threat 5 | . . . . . . . 1 . 1 1 . . . . . . . . . . 2 . . . Locate Traps 8 | . 2 . 1 . . . . . . 2 . . . . . 1 2 . . . . . . . Transport Status 1 | . . . . . . . . . . . 1 . . . . . . . . . . . . . Hauler Manifests 4 | . . . . . . . 1 . 1 1 1 . . . . . . . . . . . . . Registered Components 1 | . . . 1 . . . . . . . . . . . . . . . . . . . . . Zone Layout 2 | . 1 . . . . . . . 1 . . . . . . . . . . . . . . . Garrison Registry 1 | . . . . . . . . 1 . . . . . . . . . . . . . . . . Proto ID Catalog 1 | . . . . . 1 . . . . . . . . . . . . . . . . . . . Fabricator Hacks 4 | . . . . . . . . . . . 3 . . . . . . . . . 1 . . . Network Status 2 | . . . . . . . . . . . 1 . . . . . . . . . 1 . . . Load Schematic 1 | . . . . . . . . . . . 1 . . . . . . . . . . . . . Build 1 | . . . . . . . . . . . 1 . . . . . . . . . . . . . Repair Station Hacks 12 | . 2 . 2 . . . 2 . . 4 . . . . . . 2 . . . . . . . Scan Component 6 | . 1 . 1 . . . 1 . . 2 . . . . . . 1 . . . . . . . Repair 6 | . 1 . 1 . . . 1 . . 2 . . . . . . 1 . . . . . . . Recycling Unit Hacks 7 | . . . 2 . . . 3 . 1 . 1 . . . . . . . . . . . . . Report Inventory 5 | . . . 1 . . . 2 . 1 . 1 . . . . . . . . . . . . . Retrieve Components 2 | . . . 1 . . . 1 . . . . . . . . . . . . . . . . . Scanalyzer . | . . . . . . . . . . . . . . . . . . . . . . . . . Garrison Access Hacks 5 | . . . . . . . 1 . 1 1 1 . . . . 1 . . . . . . . . Unlock Access 1 | . . . . . . . 1 . . . . . . . . . . . . . . . . . Seal Access 4 | . . . . . . . . . 1 1 1 . . . . 1 . . . . . . . . Unauthorized Hacks 9 | . . . 2 . . . 1 . 2 . 2 . . . . 2 . . . . . . . . Terminals 8 | . . . 2 . . . 1 . 2 . 2 . . . . 1 . . . . . . . . Botnet 8 | . . . 2 . . . 1 . 2 . 2 . . . . 1 . . . . . . . . Fabricators . | . . . . . . . . . . . . . . . . . . . . . . . . . Repair Stations 1 | . . . . . . . . . . . . . . . . 1 . . . . . . . . Patch 1 | . . . . . . . . . . . . . . . . 1 . . . . . . . . Recycling Units . | . . . . . . . . . . . . . . . . . . . . . . . . . Scanalyzers . | . . . . . . . . . . . . . . . . . . . . . . . . . Garrison Access . | . . . . . . . . . . . . . . . . . . . . . . . . . Data Cores Recovered . | . . . . . . . . . . . . . . . . . . . . . . . . . Used . | . . . . . . . . . . . . . . . . . . . . . . . . . Hacking Detections 66 | . 5 . 11 . . . 8 3 8 5 7 . . . . 4 8 4 . 1 2 . . . Full Trace Events 7 | . . . 4 . . . 1 . . . 1 . . . . . . . . 1 . . . . Feedback Events 1 | . . . 1 . . . . . . . . . . . . . . . . . . . . . Corruption 1 | . . . 1 . . . . . . . . . . . . . . . . . . . . . Feedback Blocked . | . . . . . . . . . . . . . . . . . . . . . . . . . Robot Schematics Acquired 6 | . . . . . . . . . . . . . . 6 . . . . . . . . . . Robots Built . | . . . . . . . . . . . . . . . . . . . . . . . . . Authchips . | . . . . . . . . . . . . . . . . . . . . . . . . . Time . | . . . . . . . . . . . . . . . . . . . . . . . . . Total Robot Build Rating . | . . . . . . . . . . . . . . . . . . . . . . . . . Part Schematics Acquired 14 | . . . . . . . . . . 1 . . . 13 . . . . . . . . . . Parts Built 1 | . . . . . . . . . . . 1 . . . . . . . . . . . . . Authchips . | . . . . . . . . . . . . . . . . . . . . . . . . . Time 95 | . . . . . . . . . . . 95 . . . . . . . . . . . . . Total Part Build Rating 5 | . . . . . . . . . . . 5 . . . . . . . . . . . . . Parts Repaired 6 | . 1 . 1 . . . 1 . . 2 . . . . . . 1 . . . . . . . Time 182 | . 26 . 32 . . . 26 . . 76 . . . . . . 22 . . . . . . . Parts Recycled . | . . . . . . . . . . . . . . . . . . . . . . . . . Recycled Matter . | . . . . . . . . . . . . . . . . . . . . . . . . . Retrieved Matter . | . . . . . . . . . . . . . . . . . . . . . . . . . Retrieved Components 6 | . . . 3 . . . 3 . . . . . . . . . . . . . . . . . Parts Scanalyzed . | . . . . . . . . . . . . . . . . . . . . . . . . . Part Schematics Acquired . | . . . . . . . . . . . . . . . . . . . . . . . . . Parts Damaged . | . . . . . . . . . . . . . . . . . . . . . . . . . Bothacking | -11 -10 -10 -9 -9 -9 -8 -8 -8 -8 -8 -7 -7 -7 -7 -6 -6 -6 -6 -6 -6 -5 -5 -5 -5 ------------ Run | Yrd Mat Min Mat Min Exi Min Mat Gar Mat Sto Fac Low Low Dat Pro Fac Ext Cet Arc Hub Fac Upp Upp War Used RIF Installer . | . . . . . . . . . . . . . . . . . . . . . . . . . Robots Hacked 1 | . . . . . . . . . . . 1 . . . . . . . . . . . . . Non-combat 1 | . . . . . . . . . . . 1 . . . . . . . . . . . . . Combat . | . . . . . . . . . . . . . . . . . . . . . . . . . Robot Hacks Applied 1 | . . . . . . . . . . . 1 . . . . . . . . . . . . . find_chute 1 | . . . . . . . . . . . 1 . . . . . . . . . . . . . Relay Couplers Released . | . . . . . . . . . . . . . . . . . . . . . . . . . Fabnet Peak Effective % . | . . . . . . . . . . . . . . . . . . . . . . . . . Robots Rewired 8 | . . . . . . . . . . . . . . . . . 3 . . . . . . 5 Allies Hacked . | . . . . . . . . . . . . . . . . . . . . . . . . . Hacks Repelled . | . . . . . . . . . . . . . . . . . . . . . . . . . Allies | -11 -10 -10 -9 -9 -9 -8 -8 -8 -8 -8 -7 -7 -7 -7 -6 -6 -6 -6 -6 -6 -5 -5 -5 -5 -------- Run | Yrd Mat Min Mat Min Exi Min Mat Gar Mat Sto Fac Low Low Dat Pro Fac Ext Cet Arc Hub Fac Upp Upp War Total Allies 40 | . . . . 3 . . . 1 . 10 . . . . . . 16 5 . . . . . 5 Largest Group 14 | . . . . 3 . . . 1 1 10 4 . . . . . 11 14 11 9 . . . 5 Highest-Rated Group 893 | . . . . 40 . . . 20 20 173 64 . . . . . 464 893 679 553 . . . 235 Highest-Rated Ally 159 | . . . . 16 . . . 20 20 29 16 . . . . . 159 153 96 96 . . . 64 Total Orders . | . . . . . . . . . . . . . . . . . . . . . . . . . Ally Attacks 315 | . . . . 4 . . . . 2 81 27 . . . . . 55 52 25 56 . . . 13 Total Damage 6368 | . . . . 43 . . . . 62 948 332 . . . . . 1264 1305 615 1311 . . . 488 Kills 40 | . . . . . . . . . . 11 3 . . . . . 9 5 4 6 . . . 2 Allies Corrupted 2 | . . . . . . . . . . . . . . . . . . . . 2 . . . . Allies Melted . | . . . . . . . . . . . . . . . . . . . . . . . . . Intel | -11 -10 -10 -9 -9 -9 -8 -8 -8 -8 -8 -7 -7 -7 -7 -6 -6 -6 -6 -6 -6 -5 -5 -5 -5 ------- Run | Yrd Mat Min Mat Min Exi Min Mat Gar Mat Sto Fac Low Low Dat Pro Fac Ext Cet Arc Hub Fac Upp Upp War Active Infowar (turns) 6278 | 24 1337 640 185 . . . . . . . . 575 500 . . . . . . . 460 941 693 923 Optics 3017 | . . . . . . . . . . . . . . . . . . . . . 460 941 693 923 Sensors 3468 | . . . . . . . . . . . . 575 500 . . . . . . . . 821 677 895 Seismic 2186 | 24 1337 640 185 . . . . . . . . . . . . . . . . . . . . . Cloaking 1 | . . . . . . . . . . . . . . . . . . . . . . . . 1 Robot Analysis Total 10 | . 4 . 1 . . . 3 . 1 . 1 . . . . . . . . . . . . . Derelict Logs Recovered 8 | . . 2 . . . . . . . . . 2 1 . . . . . . . . 3 . . Drone Launches . | . . . . . . . . . . . . . . . . . . . . . . . . . Drone Recoveries . | . . . . . . . . . . . . . . . . . . . . . . . . . Exploration | -11 -10 -10 -9 -9 -9 -8 -8 -8 -8 -8 -7 -7 -7 -7 -6 -6 -6 -6 -6 -6 -5 -5 -5 -5 ------------- Run | Yrd Mat Min Mat Min Exi Min Mat Gar Mat Sto Fac Low Low Dat Pro Fac Ext Cet Arc Hub Fac Upp Upp War Turns Passed 24431 | 116 1337 640 2257 404 383 180 2088 725 1586 1418 2250 607 920 132 695 1241 1648 712 320 459 1756 941 693 923 Spaces Moved 12119 | 47 670 314 1080 214 238 94 964 358 732 726 1072 330 535 78 357 590 855 317 123 176 857 503 376 513 Core 25 | 3 . . . . . . . . . . . . . . . . . . . . . . . 22 Treads 11103 | 44 670 314 1080 214 238 94 964 358 732 726 1072 330 535 78 357 522 . 249 123 176 857 503 376 491 Legs . | . . . . . . . . . . . . . . . . . . . . . . . . . Wheels 991 | . . . . . . . . . . . . . . . . 68 855 68 . . . . . . Hover . | . . . . . . . . . . . . . . . . . . . . . . . . . Flight . | . . . . . . . . . . . . . . . . . . . . . . . . . Fastest Speed 50 | 50 160 160 160 160 160 160 160 165 165 165 162 162 165 165 162 130 130 130 160 160 160 160 160 50 Average Speed 161 | 155 160 192 160 160 160 160 164 165 165 165 165 165 165 165 165 159 134 166 160 160 160 160 160 155 Slowest Speed 246 | 160 160 240 160 160 160 160 246 165 165 166 243 243 165 165 243 243 145 240 160 160 160 160 160 240 Overloaded Moves . | . . . . . . . . . . . . . . . . . . . . . . . . . Propulsion Burnouts . | . . . . . . . . . . . . . . . . . . . . . . . . . Robots Hopped . | . . . . . . . . . . . . . . . . . . . . . . . . . Potential Cave-ins . | . . . . . . . . . . . . . . . . . . . . . . . . . Cave-ins Triggered . | . . . . . . . . . . . . . . . . . . . . . . . . . Exploration Rate (%) 57 | 4 96 85 89 48 60 17 68 52 71 88 22 48 61 69 51 15 86 76 93 16 21 74 61 69 Regions Visited 24 Branch Regions 16 Pre-discovered Areas 5 | . . . . 1 1 . . . . . . 1 . 1 . . . . . . . 1 . . Known Exits Taken 5 | . . . 1 . . . 1 . 1 . 1 . . . . . . . . . 1 . . . Unknown Exits Taken 18 | 1 1 1 . 1 1 1 . . . 1 . 1 1 1 1 1 1 1 1 1 . 1 1 . Scrap Searched 12 | . . 2 . 1 . . . . . . . 3 1 . 2 . . . . . . 1 2 . Spaces Dug 19 | . . . . . . . . . 2 . . . . . . 10 7 . . . . . . . Terrain Destroyed 730 | . 9 . 22 21 . . . . 34 4 7 2 . . 19 15 65 2 2 331 45 71 40 41 Melee . | . . . . . . . . . . . . . . . . . . . . . . . . . Projectile 161 | . . . . 7 . . . . 34 4 7 2 . . 2 15 23 2 2 17 30 14 2 . AOE 566 | . 9 . 22 14 . . . . . . . . . . 17 . 42 . . 313 13 57 38 41 Terrain Rammed . | . . . . . . . . . . . . . . . . . . . . . . . . . Walls Destroyed . | . . . . . . . . . . . . . . . . . . . . . . . . . Machines Disabled . | . . . . . . . . . . . . . . . . . . . . . . . . . Actions | -11 -10 -10 -9 -9 -9 -8 -8 -8 -8 -8 -7 -7 -7 -7 -6 -6 -6 -6 -6 -6 -5 -5 -5 -5 --------- Run | Yrd Mat Min Mat Min Exi Min Mat Gar Mat Sto Fac Low Low Dat Pro Fac Ext Cet Arc Hub Fac Upp Upp War Total 15351 | 69 836 329 1371 242 242 124 1308 413 922 888 1459 359 549 81 416 794 1174 481 229 294 1108 607 439 617 Wait 1589 | . 52 . 79 . . 29 173 6 52 102 301 4 1 . 5 144 118 108 96 80 118 82 38 1 Move 12095 | 47 669 313 1079 213 237 93 964 355 731 725 1071 329 534 77 356 589 854 316 122 175 856 502 375 513 Hop . | . . . . . . . . . . . . . . . . . . . . . . . . . Pick Up 165 | 4 18 . 23 1 2 . 27 3 7 5 9 3 1 . 9 4 17 11 . . 15 1 2 3 Fast Attach 60 | 6 1 . 4 . . . 4 . . 5 6 1 . 2 . 1 6 5 . 3 10 . 3 3 Attach 65 | 1 . . 6 4 . 2 8 2 . . 4 3 . . 6 3 10 1 . . 7 4 1 3 Detach 11 | . . . . . 2 . 2 . . . . . . . . 1 . 1 . . . . 3 2 Swap 120 | 1 10 1 17 3 . . 13 2 11 12 5 1 . . 8 2 4 4 2 . 10 5 4 5 Drop 160 | . 11 1 25 2 1 . 24 3 13 6 9 1 1 2 6 4 7 18 . 1 18 . 1 6 Fire 877 | 9 55 11 131 19 . . 91 41 93 26 49 17 12 . 26 42 89 17 9 34 71 13 12 10 Melee 1 | . . . . . . . . . . . 1 . . . . . . . . . . . . . Ram . | . . . . . . . . . . . . . . . . . . . . . . . . . Kick . | . . . . . . . . . . . . . . . . . . . . . . . . . Crush 48 | 1 3 3 7 . . . 2 . 15 5 4 . . . . 4 . . . 1 3 . . . Escape Stasis 57 | . . . . . . . . 1 . . . . . . . . 56 . . . . . . . Rewire 86 | . . . . . . . . . . 2 . . . . . . 13 . . . . . . 71 Trap 17 | . 17 . . . . . . . . . . . . . . . . . . . . . . . Miscellaneous . | . . . . . . . . . . . . . . . . . . . . . . . . . Route ------- -11/Scrapyard -10/Materials (discovered 4 exits: *Mat x3 / [*Min]) -10/Mines (discovered 2 exits: *Mat x2) -9/Materials (discovered 4 exits: *Mat x2 / *Min x2) -9/Mines -9/Exiles -8/Mines -8/Materials (discovered 5 exits: *Fac x2 / *Sto x2 / Gar) -8/Garrison (discovered 3 exits: *Mat x3) -8/Materials -8/Storage -7/Factory (discovered 3 exits: *Fac / *Low x2) -7/Lower Caves -7/Lower Caves -7/Data Miner -6/Proximity Caves -6/Factory (discovered 2 exits: *Low / *Ext) -6/Extension (discovered 2 exits: *Fac / *Cet) -6/Cetus (discovered 3 exits: *Fac x2 / [*Arc]) -6/Archives (discovered 3 exits: *Fac / *Hub x2) -6/Hub_04(d) -5/Factory (discovered 3 exits: *Fac / *Upp x2) -5/Upper Caves -5/Upper Caves -5/Warlord (discovered 1 exit: [*Pro]) History --------- Turn | Location | Event 25 | -11/Scrapyard | Discovered new exit (range 15) 117 | -11/Scrapyard | Entered Materials 303 | -10/Materials | Build established: Mutant 553 | -10/Materials | Discovered new exit (range 11) 641 | -10/Materials | Central database locked down 742 | -10/Materials | Discovered new exit (range 15) 1220 | -10/Materials | Build established: Scavenger-Mutant 1308 | -10/Materials | Discovered new exit (range 11) 1358 | -10/Materials | Discovered new exit (range 16) 1401 | -10/Materials | Repaired Lgt. Treads 1454 | -10/Materials | Entered Mines 1466 | -10/Mines | Found a hidden stash of uninstalled traps 1474 | -10/Mines | Learned Materials security intel 1480 | -10/Mines | Learned Materials machine intel 1544 | -10/Mines | Discovered new exit (range 10) 1688 | -10/Mines | Discovered new exit (range 9) 2094 | -10/Mines | Entered Materials 2094 | -9/Materials | Evolved 2 slots: Propulsion x1, Utility x1 2096 | -9/Materials | Loaded intel: 59 machine locations 2472 | -9/Materials | Lost 3 parts (1u2w) 2685 | -9/Materials | Build established: Mutant 3012 | -9/Materials | Discovered new exit (range 6) 3710 | -9/Materials | Repaired Imp. Ion Engine 3911 | -9/Materials | Discovered new exit (range 16) 4044 | -9/Materials | Discovered new exit (range 10) 4094 | -9/Materials | First assault squad dispatched 4239 | -9/Materials | Discovered new exit (range 16) 4270 | -9/Materials | Identified exit to Mines 4351 | -9/Materials | Entered Mines 4425 | -9/Mines | Assisted by bots powering up and referring to "LRC-V3" 4456 | -9/Mines | Received a Rocket Launcher from a helpful Derelict 4472 | -9/Mines | Assembled infested the area 4518 | -9/Mines | Core integrity fell below 50% 4524 | -9/Mines | Lost 3 allies 4540 | -9/Mines | Lost 3 parts (3n) 4551 | -9/Mines | Destroyed 7 combat bots 4637 | -9/Mines | Deemed a non-threat by the Exiles lab entrance 4665 | -9/Mines | Learned location of Storage (-8) 4749 | -9/Mines | Discovered new exit (range 5) 4755 | -9/Mines | Entered Exiles 4800 | -9/Exiles | Met 8R-AWN 4825 | -9/Exiles | Met EX-HEX 4881 | -9/Exiles | Met EX-BIN 4899 | -9/Exiles | Aligned with FarCom system 4900 | -9/Exiles | Given EX-Vault access code 4937 | -9/Exiles | Opened EX-Vault 4947 | -9/Exiles | Found Trap Reconfigurator 4980 | -9/Exiles | Warned to stay clear of 0b10 Research branches 5030 | -9/Exiles | Met EX-DEC 5040 | -9/Exiles | Learned location of Zion (-6) 5119 | -9/Exiles | Discovered new exit (range 12) 5138 | -9/Exiles | Left Exiles lab with Trap Reconfigurator 5138 | -9/Exiles | Entered Mines 5288 | -8/Mines | Discovered new exit (range 12) 5318 | -8/Mines | Entered Materials 5318 | -8/Materials | Evolved 2 slots: Propulsion x1, Utility x1 5869 | -8/Materials | Discovered new exit (range 9) 6185 | -8/Materials | Discovered new exit (range 15) 6297 | -8/Materials | Lost 6 parts (1p2n1u2w) 6330 | -8/Materials | Destroyed 8 combat bots 6624 | -8/Materials | Build established: Scavenger-Mutant 6627 | -8/Materials | Discovered new exit (range 2) 6824 | -8/Materials | Repaired Lgt. Treads 6892 | -8/Materials | Discovered new exit (range 15) 7406 | -8/Materials | Identified exit to Garrison 7406 | -8/Materials | Entered Garrison 7420 | -8/Garrison | Triggered checkpoint 7614 | -8/Garrison | Triggered checkpoint 7738 | -8/Garrison | Triggered checkpoint 7750 | -8/Garrison | Triggered checkpoint 7793 | -8/Garrison | Discovered new exit (range 9) 7809 | -8/Garrison | Discovered new exit (range 56) 7809 | -8/Garrison | Discovered new exit (range 61) 7809 | -8/Garrison | Discovered new exit (range 7) 7833 | -8/Garrison | Identified exit to Materials 7834 | -8/Garrison | Attempted to access garrison exit controls, blocked by remote lockdown 7960 | -8/Garrison | Attempted to access garrison exit controls, blocked by remote lockdown 8112 | -8/Garrison | Rescued a captive Derelict 8131 | -8/Garrison | Entered Materials 8131 | -8/Materials | Accompanied by 1 ally 8410 | -8/Materials | Core integrity fell below 50% 8494 | -8/Materials | Build established: Mutant 9633 | -8/Materials | Discovered new exit (range 20) 9668 | -8/Materials | Identified exit to Storage 9680 | -8/Materials | Build established: Scavenger-Mutant 9717 | -8/Materials | Entered Storage 10074 | -8/Storage | Assisted by bots powering up and referring to "LRC-V3" 10364 | -8/Storage | Build established: Commander-Mutant 10487 | -8/Storage | Discovered new exit (range 12) 10572 | -8/Storage | Repaired Imp. Treads 10617 | -8/Storage | Repaired Gauss Rifle 10771 | -8/Storage | Met 01-MTF 11135 | -8/Storage | Entered Factory 11135 | -7/Factory | Accompanied by 5 allies (01-MTF) 11135 | -7/Factory | Evolved 2 slots: Power x1, Utility x1 11138 | -7/Factory | 01-MTF left 11180 | -7/Factory | Discovered new exit (range 8) 11465 | -7/Factory | Garrison activated, responded to threat 11698 | -7/Factory | Lost 3 allies 11947 | -7/Factory | Build established: Mutant 12082 | -7/Factory | Discovered new exit (range 6) 12730 | -7/Factory | Identified exit to Lower Caves 12978 | -7/Factory | Fabricated Lrn. Missile Launcher (x1) 13079 | -7/Factory | Cargo convoy interrupted 13385 | -7/Factory | Entered Lower Caves 13814 | -7/Lower Caves | Found DCF Scrap (14 items) 13895 | -7/Lower Caves | Discovered new exit (range 15) 13923 | -7/Lower Caves | Learned Factory terminal intel 13992 | -7/Lower Caves | Entered another Lower Caves area 14792 | -7/Lower Caves | Discovered new exit (range 9) 14912 | -7/Lower Caves | Entered Data Miner 14912 | -7/Data Miner | Discovered new exit (range 6) 14945 | -7/Data Miner | Met Data Miner 14976 | -7/Data Miner | Learned location of Section 7 (-2) 14976 | -7/Data Miner | Acquired the access code to Warlord's prototype stash 15001 | -7/Data Miner | Received God Mode back door access code from Data Miner 15044 | -7/Data Miner | Entered Proximity Caves 15100 | -6/Proximity Caves | Spotted B-75 Beast 15160 | -6/Proximity Caves | Destroyed B-75 Beast 15179 | -6/Proximity Caves | Lost 5 parts (1p2n1u1w) 15391 | -6/Proximity Caves | Found DCF Scrap (14 items) 15527 | -6/Proximity Caves | Discovered new exit (range 14) 15694 | -6/Proximity Caves | Build established: Derelict-Mutant 15739 | -6/Proximity Caves | Entered Factory 15739 | -6/Factory | Evolved 2 slots: Utility x1, Weapon x1 15740 | -6/Factory | Identified exit to Lower Caves 15741 | -6/Factory | Loaded intel: 27 terminal locations 16145 | -6/Factory | Build established: Derelict-Skirmisher 16233 | -6/Factory | Incoming investigation squad redirected 16969 | -6/Factory | Discovered new exit (range 10) 16980 | -6/Factory | Entered Extension 17223 | -6/Extension | Rescued a captive Derelict 17317 | -6/Extension | Rescued a captive Derelict 17317 | -6/Extension | Rescued a captive Derelict 17581 | -6/Extension | Rescued a captive Derelict 17583 | -6/Extension | Rescued a captive Derelict 17852 | -6/Extension | Spotted B-75 Beast 17873 | -6/Extension | Spotted B-75 Beast 17892 | -6/Extension | Allies destroyed B-75 Beast 17913 | -6/Extension | Destroyed B-75 Beast 17930 | -6/Extension | Lost 7 parts (1n3u3w) 17943 | -6/Extension | Lost 4 allies 18037 | -6/Extension | Repaired Arm. Huge Wheel 18080 | -6/Extension | Disrupted transfer network 18240 | -6/Extension | Rescued A7 18285 | -6/Extension | Rescued a captive Derelict 18319 | -6/Extension | Rescued a captive Derelict 18323 | -6/Extension | Rescued a captive Derelict 18358 | -6/Extension | Build established: Tank 18366 | -6/Extension | Rescued a captive Derelict 18368 | -6/Extension | Rescued a captive Derelict 18423 | -6/Extension | Rescued a captive Derelict 18452 | -6/Extension | Rescued a captive Derelict 18502 | -6/Extension | Disrupted transfer network 18555 | -6/Extension | Destroyed 12 combat bots 18559 | -6/Extension | Discovered new exit (range 10) 18560 | -6/Extension | Discovered new exit (range 6) 18628 | -6/Extension | Entered Cetus 18628 | -6/Cetus | Accompanied by 10 allies (A7) 18633 | -6/Cetus | Acquired a Cetus Manufacturing Module code from A7 18645 | -6/Cetus | Spotted Cetus Guard 18645 | -6/Cetus | Spotted Cetus Guard 18650 | -6/Cetus | Spotted Cetus Guard 18655 | -6/Cetus | Destroyed Cetus Guard 18657 | -6/Cetus | Allies destroyed Cetus Guard 18657 | -6/Cetus | Spotted Cetus Guard 18662 | -6/Cetus | Allies destroyed Cetus Guard 18665 | -6/Cetus | Allies destroyed Cetus Guard 18708 | -6/Cetus | Discovered new exit (range 15) 18907 | -6/Cetus | Started Cetus Manufacturing Module 18932 | -6/Cetus | Manufactured an Enhanced Grunt 18957 | -6/Cetus | Manufactured an Enhanced Grunt 18982 | -6/Cetus | Manufactured an Enhanced Grunt 19007 | -6/Cetus | Manufactured an Enhanced Grunt 19032 | -6/Cetus | Manufactured an Enhanced Grunt 19105 | -6/Cetus | Discovered new exit (range 15) 19134 | -6/Cetus | Spotted Cetus Guard 19134 | -6/Cetus | Spotted Cetus Guard 19139 | -6/Cetus | Spotted Cetus Guard 19141 | -6/Cetus | Spotted Cetus Guard 19142 | -6/Cetus | Allies destroyed Cetus Guard 19144 | -6/Cetus | Destroyed Cetus Guard 19154 | -6/Cetus | Destroyed Cetus Guard 19167 | -6/Cetus | Destroyed Cetus Guard 19174 | -6/Cetus | Discovered new exit (range 15) 19184 | -6/Cetus | Met Revision 17 19340 | -6/Cetus | Entered Archives 19340 | -6/Archives | Accompanied by 12 allies (A7) 19369 | -6/Archives | Build established: Scavenger-Tank 19410 | -6/Archives | Discovered new exit (range 15) 19548 | -6/Archives | Discovered new exit (range 16) 19602 | -6/Archives | Discovered new exit (range 14) 19660 | -6/Archives | Entered Hub_04(d) 19660 | -6/Hub_04(d) | Accompanied by 9 allies 19742 | -6/Hub_04(d) | Discovered new exit (range 10) 19902 | -6/Hub_04(d) | Network Hub disabled 19902 | -6/Hub_04(d) | Network Hub disabled 19902 | -6/Hub_04(d) | Garrison activated, responded to threat 19909 | -6/Hub_04(d) | Spotted Lightning 19911 | -6/Hub_04(d) | Spotted Lightning 19929 | -6/Hub_04(d) | Destroyed Lightning 19940 | -6/Hub_04(d) | Destroyed Lightning 19951 | -6/Hub_04(d) | Lost 5 allies 19968 | -6/Hub_04(d) | Lost 3 parts (1p1u1w) 19972 | -6/Hub_04(d) | Found Prototype Energy Cannon 19972 | -6/Hub_04(d) | Identified EMDS 20107 | -6/Hub_04(d) | Garrison activated, responded to threat 20119 | -6/Hub_04(d) | Entered Factory 20119 | -5/Factory | Evolved 2 slots: Propulsion x1, Utility x1 20188 | -5/Factory | Discovered new exit (range 6) 20395 | -5/Factory | Identified exit to Factory 20719 | -5/Factory | First assault squad dispatched 21220 | -5/Factory | System corruption reached 10% 21253 | -5/Factory | Lost 5 parts (2p3u) 21313 | -5/Factory | Found Prototype Launcher 21313 | -5/Factory | Identified Rocket Array 21535 | -5/Factory | Identified exit to Upper Caves 21875 | -5/Factory | Entered Upper Caves 21992 | -5/Upper Caves | Learned Factory emergency access door positions 22514 | -5/Upper Caves | Ambushed by research squad 22607 | -5/Upper Caves | Learned Factory stockpile data 22710 | -5/Upper Caves | Lost 3 parts (1p2u) 22726 | -5/Upper Caves | Discovered new exit (range 17) 22816 | -5/Upper Caves | Entered another Upper Caves area 22989 | -5/Upper Caves | Attracted the attention of an 0b10 checkpoint 23355 | -5/Upper Caves | Discovered new exit (range 19) 23435 | -5/Upper Caves | Found Alien Artifact 23435 | -5/Upper Caves | Identified Dimensional Node Initializer 23435 | -5/Upper Caves | Initialized slip node 23509 | -5/Upper Caves | Entered Warlord 23562 | -5/Warlord | System corruption cleaned by Quarantine Array 23722 | -5/Warlord | Build established: Scavenger-Mutant 23773 | -5/Warlord | Met Warlord 23798 | -5/Warlord | Warlord's base attacked by MAIN.C 23957 | -5/Warlord | Learned Armory stockpile data 23959 | -5/Warlord | Learned 4 Armory zone layouts 23961 | -5/Warlord | Learned Factory garrison access intel 23961 | -5/Warlord | Learned Armory repair station intel 23961 | -5/Warlord | Learned Armory scanalyzer intel 24148 | -5/Warlord | Warlord forces counterattacked 24200 | -5/Warlord | Opened Warlord's prototype stash 24206 | -5/Warlord | Found Prototype Processor 24206 | -5/Warlord | Identified Exp. Armor Integrity Analyzer 24209 | -5/Warlord | Found Prototype Device 24209 | -5/Warlord | Identified Exp. Focal Shield 24229 | -5/Warlord | Found Prototype Device 24229 | -5/Warlord | Identified Exp. Cloaking Device 24236 | -5/Warlord | Found Prototype Reactor 24236 | -5/Warlord | Identified Vortex Chain Reactor 24362 | -5/Warlord | Spotted Striker 24383 | -5/Warlord | Spotted Executioner 24404 | -5/Warlord | Destroyed Striker 24412 | -5/Warlord | Spotted Executioner 24420 | -5/Warlord | Lost 5 allies 24425 | -5/Warlord | Core integrity fell below 50% 24427 | -5/Warlord | Spotted Striker 24427 | -5/Warlord | Spotted Striker 24429 | -5/Warlord | Core integrity fell below 20% 24432 | -5/Warlord | Discovered new exit (range 16) 24432 | -5/Warlord | Destroyed by G-50 Soldier with Heavy Laser Last Messages --------------- 24416_ Centrium Heavy Treads destroyed. 24417_ The unstable cave ceiling collapses. 24420_ Dropped Hcp. Storage Unit. 24421_ The unstable cave ceiling collapses. 24421_ Dropped Centrium Heavy Treads. 24421_ Penetrated by Slug. 24421_ Slug penetrates Earth. 24422_ Extracted 168 matter. 24423_ Slug penetrates Earth. 24424_ D-63 Destroyer destroyed. 24425_ Knocked back. 24426_ Executioner suffers critical hit (Burn). 24426_ Penetrated by Slug. 24426_ Slug penetrates Wall. 24429_ P-80 Master resets Executioner, system corruption cleaned. 24430_ Exp. Armor Integrity Analyzer destroyed. 24430_ Critical hit (Blast). 24430_ Knocked back. 24432_ EXIT=FOUND Map ----- +----------------------------------------------------+ | ??????????????????????????????????????? | | ??????????????????????????????????????? | | ??????????????????????????????????????? | | ??????????????????????????????????????? | | ??????????????????????????????????????? | | ??????????????????????????????????????? | | ??????????????????????????????????????? | | ??????????????????????????????????????? | | ??????????????????????????????????????? | | ???????????????#???????????????##?????? | | ??????????????## ?????????????? ###??? | | ??????????????# ?????????????? ##?? | | ??????????????? ???????????? < #?? | | ??????????????? ???????????? ??? | | ???????????????? ??????????? ???? | | ????????????????? ????????? ????? | | ?????????????????? ????????? ?????? | | ??????????????????? ???????? ?????? | | ???????????????????# ????### ??????? | | ???????????????????? ??### ???????? | | ????????????????????? ?? ????##??? | | ?????????????????????? ### ????? ##? | | ??#""#?????##??###????? #????? ?? | | ??#""#?????# ### ###???# ##???? ?? | | ??#""#?????## ###?# #???? #?? | | ??#""####### # #??#@ ##??? #?? | | ??#""" # # ## #??## ##?? ##? | | ###"" !!! ###?## ;### #? | | "" *]!! # #??## * ;;# #?? | | "" =/!![ #####!== ; #??? | | " =!!!! ! ##[%=%[= ##??? | | ]!! = %!%==%Kg% ###?? | | % =%=!%**%ggp%#?? | | !! ]*%%=*=";g ##?? | | %]!=%####p #??? | | "" * [ ""]*=##??#p%##?? | | "" !* ! # "!= #?### #?? | | "" "### ## "### # #?? | | ###""# #### ## ### ;?? | | ###""###??## #"# ### ##? | | ??#""#?????######### # ### ##?? | | ??#""#?????????????###" ##?# ^ #??? | | ??#""#???????????????? #??## ##??? | | ???""#???????????????# #???## #???? | | ?????????????????????# #"????# #???? | | ?????????????????????# ###???## ##??? | | ?????????????????????# ??????## #??? | | ????????????????????? ?????## #??? | | ????????????????????? ?????# #??? | | ???????????????????? ##?????# #??? | +----------------------------------------------------+ Best States ------------- Heat Dissipation 83 Energy Generation 55 Energy Capacity 700 Matter Stores 300 Matter Capacity 300 Sight Range 22 Robot Scan Range 16 Terrain Scan Density 10 Cloak Strength 4 Armor Coverage 600 Resistance: KI 30 Weapon Cycling 15 Evasion (%) 50 Core Analysis 6 Armor Integrity Analysis 50 Recoil Reduction 5 Salvage Targeting 2 Offensive Hacking 11 Defensive Hacking 10 Item Schematics ----------------- Lrn. Missile Launcher | -8/Storage | Hacked Combat Drone Bay | -7/Data Miner | Free Lgt. Regenerative Plating | -7/Data Miner | Free Biomechanical Wings | -7/Data Miner | Free Exp. Propulsion Shielding | -7/Data Miner | Free Antimatter Cannon | -7/Data Miner | Free Field Propulsion Drive | -7/Data Miner | Free Point Defense System | -7/Data Miner | Free Imp. Remote Datajack | -7/Data Miner | Free Lrn. Tractor Beam | -7/Data Miner | Free Enh. Gauss Cannon | -7/Data Miner | Free Imp. Cloaking Device | -7/Data Miner | Free Arm. Leg | -7/Data Miner | Free Adv. Trap Scanner | -7/Data Miner | Free Robot Schematics ------------------ Y-54 Guardian | -7/Data Miner | Free L-41 Fighter | -7/Data Miner | Free H-55 Commando | -7/Data Miner | Free R-10 Processor | -7/Data Miner | Free G-50 Soldier | -7/Data Miner | Free B-60 Warrior | -7/Data Miner | Free Fabricated ------------ Lrn. Missile Launcher | x1 | -7/Factory Repaired ---------- Lgt. Treads | 70% | -10/Materials Imp. Ion Engine | 18% | -9/Materials Lgt. Treads | 6% | -8/Materials Imp. Treads | 7% | -8/Storage Gauss Rifle | 9% | -8/Storage Arm. Huge Wheel | 12% | -6/Extension Alien Tech Used ----------------- Dimensional Node Initializer Achievements -------------- None Challenges ------------ None Game ------ Seed RelayFortressStreamer Manual? 0 Play Time 02:39:57 Cumulative 192.8 hours Start 2025.09.26 @ 08:06:27 End 2025.09.26 @ 20:15:22 Sessions 3 Manual Loads 0 Difficulty Rogue Special Mode None Game No. 241 Rogue 241 Adventurer 0 Explorer 0 Win Type - Total 3 Types 3/0/0/0/0/0/0/0/0/0 Lore% 70 Gallery% 56 Achievement% 54 Wizard Run 0 Options --------- Layout 1 ASCII 0 Keyboard 1 Movement Numpad Keybinds 0 Fullscreen 1 Font 24/Smallcaps Map View 50x35 Zoom Use 0% Tactical HUD 1 Map Filters NONE Filters NONE Steam 1 RUN: e91ed4c0-9acd-4e69-a210-5e9d2f4508b3